lending/lending_fUSD_20240509
["ID","MTS","AMOUNT","RATE_DAILY","PERIOD"]
[326747201,1715297475624,-500.0,0.00030958,7]
[326747202,1715297475634,-600.13,0.00030958,7]
[326747203,1715297475644,-500.0,0.00030958,7]
[326747204,1715297475654,-626.43,0.00030958,7]
[326747205,1715297475875,-887.81,0.00030958,7]
[326747206,1715297475885,-500.0,0.00030958,7]
[326747207,1715297475895,-881.06,0.00030958,7]
[326747208,1715297475904,-964.4,0.00030958,7]
[326747209,1715297475915,-714.06,0.00030958,7]
[326747210,1715297475925,-500.0,0.00030958,7]
[326747211,1715297475934,-500.0,0.00030958,7]
[326747212,1715297475944,-536.04,0.00030958,7]
[326747213,1715297475953,-820.56,0.00030958,7]
[326747214,1715297475963,-500.0,0.00030958,7]
[326747215,1715297475972,-500.0,0.00030958,7]
[326747216,1715297475982,-500.0,0.00030958,7]
[326747217,1715297475992,-596.95,0.00030958,7]
[326747218,1715297476002,-500.0,0.00030958,7]
[326747219,1715297476012,-851.48,0.00030958,7]
[326747220,1715297476022,-623.06,0.00030958,7]
[326747221,1715297476036,-770.98,0.00030958,7]
[326747222,1715297476045,-500.0,0.00030958,7]
[326747223,1715297476055,-500.0,0.00030958,7]
[326747224,1715297476065,-500.0,0.00030958,7]
[326747225,1715297476076,-500.0,0.00030958,7]
[326747226,1715297476086,-500.0,0.00030958,7]
[326747227,1715297476095,-500.0,0.00030958,7]
[326747228,1715297476106,-1500.0,0.00030958,7]
[326747229,1715297476115,-500.0,0.00030958,7]
[326747230,1715297476125,-500.0,0.00030958,7]
[326747231,1715297476135,-500.0,0.00030958,7]
[326747232,1715297476144,-500.0,0.00030958,7]
[326747233,1715297476154,-686.45,0.00030958,7]
[326747234,1715297476163,-500.0,0.00030958,7]
[326747235,1715297476173,-500.0,0.00030958,7]
[326747236,1715297476182,-516.09,0.00030958,7]
[326747237,1715297476191,-500.0,0.00030958,7]
[326747238,1715297476201,-500.0,0.00030958,7]
[326747239,1715297476210,-935.28,0.00030958,7]
[326747240,1715297476220,-500.0,0.00030958,7]
[326747241,1715297476230,-1078.4,0.00030958,7]
[326747242,1715297476239,-500.0,0.00030958,7]
[326747243,1715297476249,-500.0,0.00030958,7]
[326747244,1715297476259,-763.25,0.00030958,7]
[326747245,1715297476268,-500.0,0.00030958,7]
[326747246,1715297476278,-584.37,0.00030958,7]
[326747247,1715297476287,-1260.64,0.00030958,7]
[326747248,1715297476297,-500.0,0.00030958,7]
[326747249,1715297476306,-906.64,0.00030958,7]
[326747250,1715297476315,-500.0,0.00030958,7]
[326747251,1715297476324,-711.25,0.00030958,7]
[326747252,1715297476334,-505.46220197,0.00030958,7]
[326747253,1715297476344,-500.0,0.00030958,7]
[326747254,1715297476353,-500.0,0.00030958,7]
[326747255,1715297476363,-500.0,0.00030958,7]
[326747256,1715297476372,-500.0,0.00030958,7]
[326747257,1715297476381,-500.0,0.00030958,7]
[326747258,1715297476391,-500.0,0.00030958,7]
[326747259,1715297476400,-887.86,0.00030958,7]
[326747260,1715297476409,-500.0,0.00030958,7]
[326747261,1715297476418,-507.98322731,0.00030958,7]
[326747262,1715297476428,-500.0,0.00030958,7]
[326747263,1715297476437,-903.22,0.00030958,7]
[326747264,1715297476447,-500.0,0.00030958,7]
[326747265,1715297476456,-500.0,0.00030958,7]
[326747266,1715297476466,-853.61,0.00030958,7]
[326747267,1715297476475,-1323.39,0.00030958,7]
[326747268,1715297476484,-500.0,0.00030958,7]
[326747269,1715297476493,-500.0,0.00030958,7]
[326747270,1715297476503,-500.0,0.00030958,7]
[326747271,1715297476513,-618.86,0.00030958,7]
[326747272,1715297476522,-500.0,0.00030958,7]
[326747273,1715297476532,-977.85,0.00030958,7]
[326747274,1715297476541,-500.0,0.00030958,7]
[326747275,1715297476551,-500.0,0.00030958,7]
[326747276,1715297476560,-500.0,0.00030958,7]
[326747277,1715297476574,-500.0,0.00030958,7]
[326747278,1715297476584,-960.09,0.00030958,7]
[326747279,1715297476594,-500.0,0.00030958,7]
[326747280,1715297476603,-150.0,0.00030958,7]
[326747281,1715297476612,-653.33,0.00030958,7]
[326747282,1715297476622,-584.96,0.00030958,7]
[326747283,1715297476631,-1075.64,0.00030958,7]
[326747284,1715297476640,-500.0,0.00030958,7]
[326747285,1715297476649,-808.68,0.00030958,7]
[326747286,1715297476659,-636.82,0.00030958,7]
[326747287,1715297476668,-536.32,0.00030958,7]
[326747288,1715297476678,-500.0,0.00030958,7]
[326747289,1715297476687,-680.22,0.00030958,7]
[326747290,1715297476697,-500.0,0.00030958,7]
[326747291,1715297476707,-527.84,0.00030958,7]
[326747292,1715297476716,-500.0,0.00030958,7]
[326747293,1715297476726,-710.23,0.00030958,7]
[326747294,1715297476736,-500.0,0.00030958,7]
[326747295,1715297476745,-500.0,0.00030958,7]
[326747296,1715297476755,-500.0,0.00030958,7]
[326747297,1715297476764,-500.0,0.00030958,7]
[326747298,1715297476773,-500.0,0.00030958,7]
[326747299,1715297476783,-500.0,0.00030958,7]
[326747300,1715297476792,-1011.61,0.00030958,7]
[326747301,1715297476801,-644.49,0.00030958,7]
[326747302,1715297476811,-500.0,0.00030958,7]
[326747303,1715297476820,-1818.74,0.00030958,7]
[326747304,1715297476830,-500.0,0.00030958,7]
[326747305,1715297476839,-500.0,0.00030958,7]
[326747306,1715297476848,-500.0,0.00030958,7]
[326747307,1715297476858,-500.0,0.00030958,7]
[326747308,1715297476867,-824.76,0.00030958,7]
[326747309,1715297476876,-1122.54,0.00030958,7]
[326747310,1715297476886,-515.33,0.00030958,7]
[326747311,1715297476895,-500.0,0.00030958,7]
[326747312,1715297476905,-581.67,0.00030958,7]
[326747313,1715297476914,-878.31,0.00030958,7]
[326747314,1715297476923,-744.62,0.00030958,7]
[326747315,1715297476933,-500.0,0.00030958,7]
[326747316,1715297476942,-500.0,0.00030958,7]
[326747317,1715297476951,-500.0,0.00030958,7]
[326747318,1715297476960,-706.76,0.00030958,7]
[326747319,1715297476969,-500.0,0.00030958,7]
[326747320,1715297476979,-500.0,0.00030958,7]
[326747321,1715297476988,-1110.14,0.00030958,7]
[326747322,1715297476997,-500.0,0.00030958,7]
[326747323,1715297477006,-1787.68,0.00030958,7]
[326747324,1715297477016,-500.0,0.00030958,7]
[326747325,1715297477029,-500.0,0.00030958,7]
[326747326,1715297477039,-500.0,0.00030958,7]
[326747327,1715297477048,-530.76531204,0.00030958,7]
[326747328,1715297477057,-512.75839637,0.00030958,7]
[326747329,1715297477066,-2155.46,0.00030958,7]
[326747330,1715297477077,-500.0,0.00030958,7]
[326747331,1715297477087,-507.50275695,0.00030958,7]
[326747332,1715297477096,-500.0,0.00030958,7]
[326747333,1715297477105,-507.76405968,0.00030958,7]
[326747334,1715297477117,-2057.96,0.00030958,7]
[326747335,1715297477126,-515.8029076,0.00030958,7]
[326747336,1715297477136,-1235.53,0.00030958,7]
[326747337,1715297477145,-500.0,0.00030958,7]
[326747338,1715297477154,-500.0,0.00030958,7]
[326747339,1715297477164,-225.948735,0.00030958,7]
[326747340,1715297477173,-567.60606817,0.00030958,7]
[326747341,1715297477183,-500.0,0.00030958,7]
[326747342,1715297477192,-508.33,0.00030958,7]
[326747343,1715297477201,-578.43,0.00030958,7]
[326747344,1715297477211,-500.0,0.00030958,7]
[326747345,1715297477220,-500.0,0.00030958,7]
[326747346,1715297477229,-500.0,0.00030958,7]
[326747347,1715297477239,-500.0,0.00030958,7]
[326747348,1715297477248,-500.0,0.00030958,7]
[326747349,1715297477257,-500.0,0.00030958,7]
[326747350,1715297477266,-500.0,0.00030958,7]
[326747351,1715297477276,-514.18176135,0.00030958,7]
[326747352,1715297477285,-500.0,0.00030958,7]
[326747353,1715297477295,-2218.39,0.00030958,7]
[326747354,1715297477304,-1446.56,0.00030958,7]
[326747355,1715297477313,-500.0,0.00030958,7]
[326747356,1715297477323,-500.0,0.00030958,7]
[326747357,1715297477332,-500.0,0.00030958,7]
[326747358,1715297477341,-500.0,0.00030958,7]
[326747359,1715297477351,-702.6,0.00030958,7]
[326747360,1715297477361,-500.0,0.00030958,7]
[326747361,1715297477371,-500.0,0.00030958,7]
[326747362,1715297477380,-718.96,0.00030958,7]
[326747363,1715297477392,-2337.83,0.00030958,7]
[326747364,1715297477401,-500.0,0.00030958,7]
[326747365,1715297477411,-500.0,0.00030958,7]
[326747366,1715297477420,-765.35,0.00030958,7]
[326747367,1715297477431,-500.0,0.00030958,7]
[326747368,1715297477440,-1265.93,0.00030958,7]
[326747369,1715297477451,-502.9,0.00030958,7]
[326747370,1715297477461,-508.27379992,0.00030958,7]
[326747371,1715297477470,-888.22,0.00030958,7]
[326747372,1715297477479,-1538.92,0.00030958,7]
[326747373,1715297477488,-500.0,0.00030958,7]
[326747374,1715297477498,-1668.75,0.00030958,7]
[326747375,1715297477507,-500.0,0.00030958,7]
[326747376,1715297477516,-1116.57,0.00030958,7]
[326747377,1715297477526,-842.18,0.00030958,7]
[326747378,1715297477535,-1250.4,0.00030958,7]
[326747379,1715297477545,-1654.84,0.00030958,7]
[326747380,1715297477554,-500.0,0.00030958,7]
[326747381,1715297477564,-1344.41,0.00030958,7]
[326747382,1715297477576,-500.0,0.00030958,7]
[326747383,1715297477586,-500.0,0.00030958,7]
[326747384,1715297477595,-1915.45,0.00030958,7]
[326747385,1715297477604,-683.17,0.00030958,7]
[326747386,1715297477614,-641.12,0.00030958,7]
[326747387,1715297477623,-1857.39,0.00030958,7]
[326747388,1715297477633,-687.97,0.00030958,7]
[326747389,1715297477644,-1314.13,0.00030958,7]
[326747390,1715297477655,-151.0,0.00030958,7]
[326747391,1715297477666,-961.48,0.00030958,7]
[326747392,1715297477675,-151.0,0.00030958,7]
[326747393,1715297477684,-2774.58,0.00030958,7]
[326747394,1715297477694,-500.0,0.00030958,7]
[326747395,1715297477703,-500.0,0.00030958,7]
[326747396,1715297477713,-500.0,0.00030958,7]
[326747397,1715297477723,-1270.75,0.00030958,7]
[326747398,1715297477732,-3000.0,0.00030958,7]
[326747399,1715297477742,-705.0,0.00030958,7]
[326747400,1715297477758,-636.76,0.00030958,7]
[326747401,1715297477776,-1154.34,0.00030958,7]
[326747402,1715297477789,-2507.23,0.00030958,7]
[326747403,1715297477805,-756.92,0.00030958,7]
[326747404,1715297477821,-2178.56,0.00030958,7]
[326747405,1715297477838,-925.37,0.00030958,7]
[326747406,1715297477856,-500.0,0.00030958,7]
[326747407,1715297477872,-151.0,0.00030958,7]
[326747408,1715297477888,-500.0,0.00030958,7]
[326747409,1715297477904,-151.0,0.00030958,7]
[326747410,1715297477918,-500.0,0.00030958,7]
[326747411,1715297477930,-500.0,0.00030958,7]
[326747412,1715297477945,-624.36,0.00030958,7]
[326747413,1715297477959,-500.0,0.00030958,7]
[326747414,1715297477976,-151.0,0.00030958,7]
[326747415,1715297477992,-288.52019,0.00030958,7]
[326747416,1715297478004,-1275.69,0.00030958,7]
[326747417,1715297478016,-2358.15,0.00030958,7]
[326747418,1715297478033,-646.74,0.00030958,7]
[326747419,1715297478046,-1187.26,0.00030958,7]
[326747420,1715297478059,-565.47,0.00030958,7]
[326747421,1715297478074,-1634.05,0.00030958,7]
[326747422,1715297478085,-3322.37,0.00030958,7]
[326747423,1715297478099,-630.81,0.00030958,7]
[326747424,1715297478114,-507.76,0.00030958,7]
[326747425,1715297478128,-2028.74,0.00030958,7]
[326747426,1715297478141,-500.0,0.00030958,7]
[326747427,1715297478154,-1292.29,0.00030958,7]
[326747428,1715297478169,-157.932236,0.00030958,7]
[326747429,1715297478183,-157.932236,0.00030958,7]
[326747430,1715297478196,-500.0,0.00030958,7]
[326747431,1715297478210,-2622.15,0.00030958,7]
[326747432,1715297478222,-500.0,0.00030958,7]
[326747433,1715297478237,-2351.92,0.00030958,7]
[326747434,1715297478251,-1625.02,0.00030958,7]
[326747435,1715297478265,-157.932236,0.00030958,7]
[326747436,1715297478278,-157.932236,0.00030958,7]
[326747437,1715297478292,-500.0,0.00030958,7]
[326747438,1715297478304,-500.0,0.00030958,7]
[326747439,1715297478317,-405.65525973,0.00030958,7]
[326747440,1715297478330,-151.0,0.00030958,7]
[326747441,1715297478342,-1675.77,0.00030958,7]
[326747442,1715297478355,-500.0,0.00030958,7]
[326747443,1715297478369,-1217.3,0.00030958,7]
[326747444,1715297478381,-151.0,0.00030958,7]
[326747445,1715297478395,-151.0,0.00030958,7]
[326747446,1715297478408,-807.83,0.00030958,7]
[326747447,1715297478421,-186.229229,0.00030958,7]
[326747448,1715297478434,-500.0,0.00030958,7]
[326747449,1715297478446,-500.0,0.00030958,7]
[326747450,1715297478459,-500.0,0.00030958,7]
[326747451,1715297478472,-1072.38,0.00030958,7]
[326747452,1715297478485,-2861.03,0.00030958,7]
[326747453,1715297478498,-500.0,0.00030958,7]
[326747454,1715297478511,-737.54,0.00030958,7]
[326747455,1715297478524,-500.0,0.00030958,7]
[326747456,1715297478537,-635.16,0.00030958,7]
[326747457,1715297478549,-631.61953437,0.00030958,7]
[326747458,1715297478561,-1723.47,0.00030958,7]
[326747459,1715297478573,-710.59,0.00030958,7]
[326747460,1715297478586,-500.0,0.00030958,7]
[326747461,1715297478598,-508.23679556,0.00030958,7]
[326747462,1715297478612,-2265.73,0.00030958,7]
[326747463,1715297478624,-2107.35,0.00030958,7]
[326747464,1715297478636,-500.0,0.00030958,7]
[326747465,1715297478648,-1544.27,0.00030958,7]
[326747466,1715297478661,-500.0,0.00030958,7]
[326747467,1715297478673,-500.0,0.00030958,7]
[326747468,1715297478685,-3520.34,0.00030958,7]
[326747469,1715297478698,-1431.08,0.00030958,7]
[326747470,1715297478710,-500.0,0.00030958,2]
[326747471,1715297478722,-500.0,0.00030958,7]
[326747472,1715297478735,-500.0,0.00030958,7]
[326747473,1715297478747,-515.12,0.00030958,7]
[326747474,1715297478759,-1386.16,0.00030958,7]
[326747475,1715297478771,-500.0,0.00030958,7]
[326747476,1715297478783,-1371.64,0.00030958,7]
[326747477,1715297478795,-833.61,0.00030958,7]
[326747478,1715297478808,-1135.42,0.00030958,7]
[326747479,1715297478820,-500.0,0.00030958,7]
[326747480,1715297478833,-697.35,0.00030958,7]
[326747481,1715297478845,-1148.26,0.00030958,7]
[326747482,1715297478858,-570.78,0.00030958,7]
[326747483,1715297478870,-500.0,0.00030958,7]
[326747484,1715297478882,-1003.43,0.00030958,7]
[326747485,1715297478899,-500.0,0.00030958,7]
[326747486,1715297478911,-1271.35,0.00030958,7]
[326747487,1715297478924,-1107.12,0.00030958,7]
[326747488,1715297478936,-1705.53,0.00030958,7]
[326747489,1715297478948,-519.12,0.00030958,7]
[326747490,1715297478960,-500.0,0.00030958,7]
[326747491,1715297478973,-500.0,0.00030958,7]
[326747492,1715297478985,-500.0,0.00030958,7]
[326747493,1715297478997,-500.0,0.00030958,7]
[326747494,1715297479009,-500.0,0.00030958,7]
[326747495,1715297479023,-500.0,0.00030958,7]
[326747496,1715297479039,-500.0,0.00030958,7]
[326747497,1715297479051,-3395.6,0.00030958,7]
[326747498,1715297479064,-500.0,0.00030958,7]
[326747499,1715297479077,-500.0,0.00030958,7]
[326747500,1715297479089,-500.0,0.00030958,7]
[326747501,1715297479102,-887.35,0.00030958,7]
[326747502,1715297479115,-500.0,0.00030958,7]
[326747503,1715297479127,-394.05428682,0.00030958,7]
[326747504,1715297479139,-2406.31,0.00030958,7]
[326747505,1715297479152,-1956.6,0.00030958,7]
[326747506,1715297479164,-500.0,0.00030958,7]
[326747507,1715297479176,-500.0,0.00030958,7]
[326747508,1715297479188,-151.0,0.00030958,7]
[326747509,1715297479200,-500.0,0.00030958,7]
[326747510,1715297479212,-2873.61,0.00030958,7]
[326747511,1715297479224,-151.0,0.00030958,7]
[326747512,1715297479236,-1893.29,0.00030958,7]
[326747513,1715297479248,-1000.0,0.00030958,7]
[326747514,1715297479260,-882.28,0.00030958,7]
[326747515,1715297479273,-2277.69,0.00030958,7]
[326747516,1715297479285,-500.0,0.00030958,7]
[326747517,1715297479298,-500.0,0.00030958,7]
[326747518,1715297479310,-935.53,0.00030958,7]
[326747519,1715297479322,-522.83,0.00030958,7]
[326747520,1715297479334,-500.0,0.00030958,7]
[326747521,1715297479347,-500.0,0.00030958,7]
[326747522,1715297479360,-1278.41,0.00030958,7]
[326747523,1715297479372,-825.67,0.00030958,7]
[326747524,1715297479386,-500.0,0.00030958,7]
[326747525,1715297479399,-500.0,0.00030958,7]
[326747526,1715297479411,-1430.53,0.00030958,7]
[326747527,1715297479423,-1823.72,0.00030958,7]
[326747528,1715297479435,-668.05,0.00030958,7]
[326747529,1715297479447,-500.0,0.00030958,7]
[326747530,1715297479460,-500.0,0.00030958,7]
[326747531,1715297479472,-1142.6,0.00030958,7]
[326747532,1715297479484,-1726.72,0.00030958,7]
[326747533,1715297479496,-1109.58,0.00030958,7]
[326747534,1715297479509,-1014.73,0.00030958,7]
[326747535,1715297479521,-500.0,0.00030958,7]
[326747536,1715297479533,-1440.2,0.00030958,7]
[326747537,1715297479545,-650.7,0.00030958,7]
[326747538,1715297479557,-500.0,0.00030958,7]
[326747539,1715297479569,-1201.47,0.00030958,7]
[326747540,1715297479581,-270.48139331,0.00030958,7]
[326747541,1715297479593,-1085.28,0.00030958,7]
[326747542,1715297479606,-1198.9,0.00030958,7]
[326747543,1715297479620,-890.62,0.00030958,7]
[326747544,1715297479633,-500.0,0.00030958,7]
[326747545,1715297479645,-500.0,0.00030958,7]
[326747546,1715297479658,-500.0,0.00030958,7]
[326747547,1715297479670,-500.0,0.00030958,7]
[326747548,1715297479682,-500.0,0.00030958,7]
[326747549,1715297479695,-516.15094065,0.00030958,7]
[326747550,1715297479707,-500.0,0.00030958,7]
[326747551,1715297479721,-950.51,0.00030958,7]
[326747552,1715297479734,-831.05,0.00030958,7]
[326747553,1715297479747,-500.0,0.00030958,7]
[326747554,1715297479759,-500.0,0.00030958,7]
[326747555,1715297479773,-289.1259324,0.00030958,7]
[326747556,1715297479786,-1027.3,0.00030958,7]
[326747557,1715297479798,-500.0,0.00030958,7]
[326747558,1715297479810,-500.0,0.00030958,7]
[326747559,1715297479824,-500.0,0.00030958,7]
[326747560,1715297479837,-500.0,0.00030958,7]
[326747561,1715297479851,-1179.31,0.00030958,7]
[326747562,1715297479864,-500.0,0.00030958,7]
[326747563,1715297479877,-167.234708,0.00030958,7]
[326747564,1715297479891,-836.3,0.00030958,7]
[326747565,1715297479904,-500.0,0.00030958,7]
[326747566,1715297479918,-1418.73,0.00030958,7]
[326747567,1715297479930,-861.26,0.00030958,7]
[326747568,1715297479943,-1576.12,0.00030958,7]
[326747569,1715297479955,-500.0,0.00030958,7]
[326747570,1715297479967,-500.0,0.00030958,7]
[326747571,1715297479980,-500.0,0.00030958,7]
[326747572,1715297479993,-500.0,0.00030958,7]
[326747573,1715297480008,-500.0,0.00030958,7]
[326747574,1715297480023,-500.0,0.00030958,7]
[326747575,1715297480041,-500.0,0.00030958,7]
[326747576,1715297480052,-1503.77,0.00030958,7]
[326747577,1715297480062,-1281.56,0.00030958,7]
[326747578,1715297480073,-1467.72,0.00030958,7]
[326747579,1715297480082,-530.05087784,0.00030958,7]
[326747580,1715297480092,-1578.77,0.00030958,7]
[326747581,1715297480101,-500.0,0.00030958,7]
[326747582,1715297480111,-500.0,0.00030958,7]
[326747583,1715297480120,-500.0,0.00030958,7]
[326747584,1715297480131,-1342.61,0.00030958,7]
[326747585,1715297480142,-743.91,0.00030958,7]
[326747586,1715297480152,-500.0,0.00030958,7]
[326747587,1715297480162,-738.78,0.00030958,7]
[326747588,1715297480172,-268.806236,0.00030958,7]
[326747589,1715297480182,-268.806236,0.00030958,7]
[326747590,1715297480192,-500.0,0.00030958,7]
[326747591,1715297480644,-500.0,0.00030958,7]
[326747592,1715297480678,-1826.72,0.00030958,7]
[326747593,1715297480706,-268.806236,0.00030958,7]
[326747594,1715297480736,-268.806236,0.00030958,7]
[326747595,1715297480746,-1576.13,0.00030958,7]
[326747596,1715297480756,-877.9,0.00030958,7]
[326747597,1715297480765,-500.0,0.00030958,7]
[326747598,1715297480775,-500.0,0.00030958,7]
[326747599,1715297480784,-500.0,0.00030958,7]
[326747600,1715297480793,-1244.47,0.00030958,7]
[326747601,1715297480802,-2093.7,0.00030958,7]
[326747602,1715297480811,-616.76,0.00030958,7]
[326747603,1715297480820,-500.0,0.00030958,7]
[326747604,1715297480829,-500.0,0.00030958,7]
[326747605,1715297480838,-500.0,0.00030958,7]
[326747606,1715297480847,-500.0,0.00030958,7]
[326747607,1715297480856,-725.76,0.00030958,7]
[326747608,1715297480866,-500.0,0.00030958,7]
[326747609,1715297480874,-683.02,0.00030958,7]
[326747610,1715297480884,-500.0,0.00030958,7]
[326747611,1715297480893,-1709.75,0.00030958,7]
[326747612,1715297480902,-1020.79,0.00030958,7]
[326747613,1715297480911,-1330.42,0.00030958,7]
[326747614,1715297480920,-885.37,0.00030958,7]
[326747615,1715297480929,-514.87,0.00030958,7]
[326747616,1715297480938,-1007.97,0.00030958,7]
[326747617,1715297480948,-500.0,0.00030958,7]
[326747618,1715297480957,-500.0,0.00030958,7]
[326747619,1715297480969,-151.0,0.00030958,7]
[326747620,1715297480980,-151.0,0.00030958,7]
[326747621,1715297480989,-2980.74,0.00030958,7]
[326747622,1715297480999,-2876.72,0.00030958,7]
[326747623,1715297481008,-500.0,0.00030958,7]
[326747624,1715297481018,-500.0,0.00030958,7]
[326747625,1715297481030,-1202.24,0.00030958,7]
[326747626,1715297481040,-500.0,0.00030958,7]
[326747627,1715297481049,-1473.97,0.00030958,7]
[326747628,1715297481058,-535.28,0.00030958,7]
[326747629,1715297481067,-513.69309795,0.00030958,7]
[326747630,1715297481078,-500.0,0.00030958,7]
[326747631,1715297481087,-538.21,0.00030958,7]
[326747632,1715297481096,-235.171682,0.00030958,7]
[326747633,1715297481105,-235.171682,0.00030958,7]
[326747634,1715297481116,-2460.69,0.00030958,7]
[326747635,1715297481125,-500.0,0.00030958,7]
[326747636,1715297481134,-500.0,0.00030958,7]
[326747637,1715297481143,-940.88,0.00030958,7]
[326747638,1715297481152,-500.0,0.00030958,7]
[326747639,1715297481161,-235.171682,0.00030958,7]
[326747640,1715297481171,-1048.96,0.00030958,7]
[326747641,1715297481180,-235.171682,0.00030958,7]
[326747642,1715297481189,-566.84,0.00030958,7]
[326747643,1715297481198,-567.26,0.00030958,7]
[326747644,1715297481209,-1657.4,0.00030958,7]
[326747645,1715297481218,-954.46,0.00030958,7]
[326747646,1715297481228,-1041.5,0.00030958,7]
[326747647,1715297481237,-500.0,0.00030958,7]
[326747648,1715297481246,-500.0,0.00030958,7]
[326747649,1715297481255,-663.07,0.00030958,7]
[326747650,1715297481264,-831.97,0.00030958,7]
[326747651,1715297481273,-403.17429673,0.00030958,7]
[326747652,1715297481282,-800.82,0.00030958,7]
[326747653,1715297481292,-4798.37,0.00030958,7]
[326747654,1715297481301,-500.0,0.00030958,7]
[326747655,1715297481310,-2107.25,0.00030958,7]
[326747656,1715297481319,-2384.6,0.00030958,7]
[326747657,1715297481329,-716.47,0.00030958,7]
[326747658,1715297481339,-500.0,0.00030958,7]
[326747659,1715297481349,-8798.95,0.00030958,7]
[326747660,1715297481360,-500.0,0.00030958,7]
[326747661,1715297481370,-500.0,0.00030958,7]
[326747662,1715297481379,-909.4,0.00030958,7]
[326747663,1715297481389,-500.0,0.00030958,7]
[326747664,1715297481399,-500.0,0.00030958,7]
[326747665,1715297481408,-885.27,0.00030958,7]
[326747666,1715297481418,-514.76419505,0.00030958,7]
[326747667,1715297481427,-500.0,0.00030958,7]
[326747668,1715297481436,-3506.97,0.00030958,7]
[326747669,1715297481445,-1009.76,0.00030958,7]
[326747670,1715297481455,-821.09,0.00030958,7]
[326747671,1715297481464,-2623.17,0.00030958,7]
[326747672,1715297481473,-1462.41,0.00030958,7]
[326747673,1715297481483,-737.52,0.00030958,7]
[326747674,1715297481492,-932.66,0.00030958,7]
[326747675,1715297481503,-1357.62,0.00030958,7]
[326747676,1715297481513,-942.26,0.00030958,7]
[326747677,1715297481524,-151.0,0.00030958,7]
[326747678,1715297481533,-151.0,0.00030958,7]
[326747679,1715297481542,-681.05,0.00030958,7]
[326747680,1715297481551,-511.5970015,0.00030958,7]
[326747681,1715297481561,-500.0,0.00030958,7]
[326747682,1715297481571,-500.0,0.00030958,7]
[326747683,1715297481580,-1012.3,0.00030958,7]
[326747684,1715297481590,-500.0,0.00030958,7]
[326747685,1715297481599,-4646.17,0.00030958,7]
[326747686,1715297481608,-1356.54,0.00030958,7]
[326747687,1715297481618,-500.0,0.00030958,7]
[326747688,1715297481633,-599.25,0.00030958,7]
[326747689,1715297481643,-42011.28,0.00030958,7]
[326747690,1715297481653,-500.0,0.00030958,7]
[326747691,1715297481662,-500.0,0.00030958,7]
[326747692,1715297481672,-500.0,0.00030958,7]
[326747693,1715297481682,-807.72,0.00030958,7]
[326747694,1715297481691,-2159.75,0.00030958,7]
[326747695,1715297481701,-4089.52,0.00030958,7]
[326747696,1715297481711,-9288.02,0.00030958,7]
[326747697,1715297481720,-1792.62,0.00030958,7]
[326747698,1715297481730,-3984.95,0.00030958,7]
[326747699,1715297481739,-151.0,0.00030958,7]
[326747700,1715297481749,-151.0,0.00030958,7]